[Event "52nd Biel Festival Blitz 2019"]
[Site "Biel"]
[Date "2019.07.27"]
[Round "5.3"]
[White "Maghsoodloo, Parham"]
[Black "Bogner, Sebastian"]
[Result "0-1"]
[ECO "A13"]
[WhiteElo "2656"]
[BlackElo "2584"]
[Annotator "ChessBase"]
[PlyCount "52"]
[EventDate "2019.07.27"]
[EventType "tourn"]
[EventCountry "SUI"]
[SourceTitle "playchess.com"]
[Source "ChessBase"]
[SourceQuality "1"]
[TimeControl "180+2"]

1. Nf3 {[%emt 0:00:00]} d5 {[%emt 0:00:00]} 2. g3 {[%emt 0:00:00]} Nf6 {[%emt 0:00:00]} 3. Bg2 {[%emt 0:00:01]} e6 {[%emt 0:00:01]} 4. O-O {[%emt 0:00:03]} c5 {[%emt 0:00:01]} 5. c4 {[%emt 0:00:10]} d4 {[%emt 0:00:01]} 6. e3 {[%emt 0:00:01]} Nc6 {[%emt 0:00:01]} 7. exd4 {[%emt 0:00:01]} cxd4 {[%emt 0:00:01]} 8. d3 {[%emt 0:00:05]} Bd6 {[%emt 0:00:01]} 9. Re1 {[%emt 0:00:05]} O-O {[%emt 0:00:02]} 10. b3 {[%emt 0:00:07]} h6 {[%emt 0:00:17]} 11. Ba3 {[%emt 0:00:02]} a5 {[%emt 0:00:09]} 12. Bxd6 {[%emt 0:00:16]} Qxd6 {[%emt 0:00:01]} 13. Nbd2 {[%emt 0:00:03]} e5 {[%emt 0:00:02]} 14. a3 {[%emt 0:00:02]} Bf5 {[%emt 0:00:03]} 15. Qc2 {[%emt 0:00:01]} Nd7 {[%emt 0:00:08]} 16. Ne4 {[%emt 0:00:11]} Qe7 {[%emt 0:00:03]} 17. h3 {[%emt 0:00:06]} Bh7 {[%emt 0:00:07]} 18. g4 {[%emt 0:00:05]} f5 {[%emt 0:00:06]} 19. gxf5 {[%emt 0:00:01]} Bxf5 {[%emt 0:00:06]} 20. Qe2 {[%emt 0:00:14]} Rf7 {[%emt 0:00:43]} 21. Nfd2 {[%emt 0:00:54]} Raf8 22. Qh5 {[%emt 0:00:16]} Bh7 23. Rac1 {[%emt 0:00:47]} Qxa3 {[%emt 0:00:29]} 24. c5 {[%emt 0:00:00]} Kh8 25. Qd1 {[%emt 0:00:59]} Qb4 {[%emt 0:00:07]} 26. Rc4 {[%emt 0:00:12]} Qa3 {[%emt 0:00:33]} 0-1

[Event "52nd Biel Festival Blitz 2019"]
[Site "Biel"]
[Date "2019.07.27"]
[Round "10.2"]
[White "Bogner, Sebastian"]
[Black "Georgiadis, Nico"]
[Result "0-1"]
[ECO "A57"]
[WhiteElo "2584"]
[BlackElo "2514"]
[Annotator "ChessBase"]
[PlyCount "106"]
[EventDate "2019.07.27"]
[EventType "tourn"]
[EventCountry "SUI"]
[SourceTitle "playchess.com"]
[Source "ChessBase"]
[SourceQuality "1"]
[TimeControl "180+2"]

1. Nf3 {[%emt 0:00:00]} Nf6 {[%emt 0:00:00]} 2. c4 {[%emt 0:00:00]} g6 {[%emt 0:00:03]} 3. d4 {[%emt 0:00:03]} c5 {[%emt 0:00:01]} 4. d5 {[%emt 0:00:02]} b5 {[%emt 0:00:01]} 5. Qc2 {[%emt 0:00:03]} Na6 {[%emt 0:00:14]} 6. a3 {[%emt 0:00:01]} bxc4 {[%emt 0:00:01]} 7. e4 {[%emt 0:00:02]} Bg7 {[%emt 0:00:04]} 8. Bxc4 {[%emt 0:00:03]} Nc7 {[%emt 0:00:04]} 9. O-O {[%emt 0:00:06]} O-O {[%emt 0:00:04]} 10. Nc3 {[%emt 0:00:02]} d6 {[%emt 0:00:05]} 11. h3 {[%emt 0:00:04]} Ba6 {[%emt 0:00:04]} 12. Bxa6 {[%emt 0:00:11]} Nxa6 {[%emt 0:00:01]} 13. Nd2 {[%emt 0:00:03]} Nd7 {[%emt 0:00:09]} 14. Nc4 {[%emt 0:00:04]} Nb6 {[%emt 0:00:32]} 15. b3 {[%emt 0:00:44]} Nc7 {[%emt 0:00:09]} 16. Bd2 {[%emt 0:00:08]} Qd7 {[%emt 0:00:17]} 17. Rab1 {[%emt 0:00:06]} f5 {[%emt 0:00:05]} 18. f3 {[%emt 0:00:12]} e6 {[%emt 0:00:09]} 19. dxe6 {[%emt 0:00:03]} Nxe6 {[%emt 0:00:02]} 20. Nxb6 {[%emt 0:00:05]} axb6 {[%emt 0:00:03]} 21. a4 {[%emt 0:00:03]} Nd4 {[%emt 0:00:01]} 22. Qd3 {[%emt 0:00:01]} fxe4 {[%emt 0:00:07]} 23. fxe4 {[%emt 0:00:03]} Qe6 {[%emt 0:00:03]} 24. Nd5 {[%emt 0:00:03]} Rab8 {[%emt 0:00:16]} 25. Bc3 {[%emt 0:00:10]} Rxf1+ {[%emt 0:00:05]} 26. Rxf1 {[%emt 0:00:00]} b5 {[%emt 0:00:16]} 27. axb5 {[%emt 0:00:05]} Rxb5 {[%emt 0:00:01]} 28. Nc7 {[%emt 0:00:05]} Qxb3 {[%emt 0:00:07]} 29. Nxb5 {[%emt 0:00:02]} Nxb5 {[%emt 0:00:06]} 30. Rb1 {[%emt 0:00:18]} Qxc3 {[%emt 0:00:22]} 31. Qd5+ {[%emt 0:00:04]} Kf8 {[%emt 0:00:08]} 32. Rf1+ {[%emt 0:00:06]} Bf6 {[%emt 0:00:01]} 33. Qa8+ {[%emt 0:00:11]} Kg7 {[%emt 0:00:04]} 34. Qb7+ {[%emt 0:00:01]} Kh6 {[%emt 0:00:05]} 35. Qxb5 {[%emt 0:00:01]} Qe3+ {[%emt 0:00:03]} 36. Kh1 {[%emt 0:00:00]} Be5 {[%emt 0:00:00]} 37. Rf3 {[%emt 0:00:34]} Qxe4 {[%emt 0:00:04]} 38. Qf1 {[%emt 0:00:06]} c4 {[%emt 0:00:02]} 39. h4 {[%emt 0:00:07]} c3 {[%emt 0:00:04]} 40. Qc1+ {[%emt 0:00:02]} Kg7 {[%emt 0:00:03]} 41. h5 {[%emt 0:00:07]} c2 {[%emt 0:00:12]} 42. h6+ {[%emt 0:00:01]} Kg8 {[%emt 0:00:01]} 43. Qf1 {[%emt 0:00:01]} Qa8 {[%emt 0:00:03]} 44. Qc4+ {[%emt 0:00:02]} Kh8 {[%emt 0:00:01]} 45. Qf1 {[%emt 0:00:05]} Kg8 {[%emt 0:00:02]} 46. Qc4+ {[%emt 0:00:00]} Kh8 {[%emt 0:00:03]} 47. Qf1 {[%emt 0:00:01]} Kg8 {[%emt 0:00:00]} 48. Qc4+ {[%emt 0:00:00]} d5 {[%emt 0:00:03]} 49. Qf1 {[%emt 0:00:05]} d4 {[%emt 0:00:02]} 50. g3 {[%emt 0:00:03]} c1=Q {[%emt 0:00:05]} 51. Qxc1 {[%emt 0:00:09]} Qxf3+ {[%emt 0:00:00]} 52. Kg1 {[%emt 0:00:00]} Qxg3+ {[%emt 0:00:01]} 53. Kf1 Qf4+ {[%emt 0:00:00]} 0-1

[Event "52nd Biel Festival Blitz 2019"]
[Site "Biel"]
[Date "2019.07.27"]
[Round "10.4"]
[White "Vidit, Santosh Gujrathi"]
[Black "Maghsoodloo, Parham"]
[Result "1-0"]
[ECO "B06"]
[WhiteElo "2703"]
[BlackElo "2656"]
[Annotator "ChessBase"]
[PlyCount "97"]
[EventDate "2019.07.27"]
[EventType "tourn"]
[EventCountry "SUI"]
[SourceTitle "playchess.com"]
[Source "ChessBase"]
[SourceQuality "1"]
[TimeControl "180+2"]

1. d4 {[%emt 0:00:00]} g6 {[%emt 0:00:00]} 2. e4 {[%emt 0:00:02]} Bg7 {[%emt 0:00:01]} 3. Nc3 {[%emt 0:00:01]} d6 {[%emt 0:00:02]} 4. Be3 {[%emt 0:00:02]} a6 {[%emt 0:00:02]} 5. Qd2 {[%emt 0:00:04]} Nd7 {[%emt 0:00:07]} 6. h4 {[%emt 0:00:05]} h5 {[%emt 0:00:01]} 7. Nh3 {[%emt 0:00:02]} Ngf6 {[%emt 0:00:02]} 8. f3 {[%emt 0:00:02]} b5 {[%emt 0:00:07]} 9. Ng5 {[%emt 0:00:05]} Bb7 {[%emt 0:00:10]} 10. O-O-O {[%emt 0:00:11]} e6 {[%emt 0:00:05]} 11. a3 {[%emt 0:00:14]} Qe7 {[%emt 0:00:09]} 12. Kb1 {[%emt 0:00:09]} c5 {[%emt 0:00:04]} 13. dxc5 {[%emt 0:00:22]} dxc5 {[%emt 0:00:01]} 14. Qd6 {[%emt 0:00:08]} Qxd6 {[%emt 0:00:21]} 15. Rxd6 {[%emt 0:00:01]} Bf8 {[%emt 0:00:11]} 16. Rd2 {[%emt 0:00:04]} c4 {[%emt 0:00:01]} 17. Be2 {[%emt 0:00:11]} Bc5 {[%emt 0:00:07]} 18. Bxc5 {[%emt 0:00:03]} Nxc5 {[%emt 0:00:01]} 19. a4 {[%emt 0:00:19]} Bc6 {[%emt 0:00:05]} 20. Rd6 {[%emt 0:00:12]} Rc8 {[%emt 0:00:05]} 21. axb5 {[%emt 0:00:16]} axb5 {[%emt 0:00:02]} 22. Rhd1 {[%emt 0:00:06]} Ke7 {[%emt 0:00:06]} 23. g3 {[%emt 0:00:05]} Rc7 {[%emt 0:00:20]} 24. Na2 {[%emt 0:00:07]} Ra8 {[%emt 0:00:05]} 25. Nb4 {[%emt 0:00:07]} Be8 {[%emt 0:00:07]} 26. e5 {[%emt 0:00:17]} Nfd7 {[%emt 0:00:02]} 27. f4 {[%emt 0:00:02]} Ra4 {[%emt 0:00:09]} 28. c3 {[%emt 0:00:03]} Nb3 {[%emt 0:00:01]} 29. Kc2 {[%emt 0:00:06]} Ndc5 {[%emt 0:00:03]} 30. Bf3 {[%emt 0:00:04]} Ra1 {[%emt 0:00:27]} 31. Rxa1 {[%emt 0:00:03]} Nxa1+ {[%emt 0:00:01]} 32. Kd2 {[%emt 0:00:12]} Nab3+ {[%emt 0:00:01]} 33. Ke3 {[%emt 0:00:01]} Na4 {[%emt 0:00:01]} 34. Bc6 {[%emt 0:00:05]} Nxb2 {[%emt 0:00:05]} 35. Bxe8 {[%emt 0:00:06]} Kxe8 {[%emt 0:00:02]} 36. Nh7 {[%emt 0:00:02]} Rc8 {[%emt 0:00:08]} 37. Nf6+ {[%emt 0:00:02]} Kf8 {[%emt 0:00:01]} 38. Nc6 {[%emt 0:00:03]} Na4 {[%emt 0:00:13]} 39. Na7 {[%emt 0:00:04]} Ra8 {[%emt 0:00:13]} 40. Nxb5 {[%emt 0:00:02]} Kg7 {[%emt 0:00:03]} 41. Rd7 {[%emt 0:00:03]} Nbc5 {[%emt 0:00:14]} 42. Rc7 {[%emt 0:00:01]} Na6 {[%emt 0:00:14]} 43. Rxc4 {[%emt 0:00:02]} N6c5 {[%emt 0:00:00]} 44. Nd6 {[%emt 0:00:03]} Rd8 {[%emt 0:00:03]} 45. Rb4 {[%emt 0:00:05]} Nxc3 {[%emt 0:00:01]} 46. Kd4 {[%emt 0:00:04]} N5a4 {[%emt 0:00:05]} 47. Rb7 {[%emt 0:00:01]} Ne2+ {[%emt 0:00:01]} 48. Ke3 {[%emt 0:00:01]} Nxg3 {[%emt 0:00:02]} 49. Rxf7+ {[%emt 0:00:02]} 1-0